bitfinex/quotes_ETHUSD_20251110
["timestamp","ask_amount","ask_price","bid_price","bid_amount"]
[1762788384822,0.01,3544.9,3544.0,0.4879167]
[1762788385027,0.01,3544.9,3544.1,0.1838]
[1762788385939,0.01,3544.9,3544.2,3.22694181]
[1762788386354,0.01,3544.9,3544.3,0.4607]
[1762788387524,0.01,3544.9,3544.4,2.82129053]
[1762788388044,0.01,3544.9,3544.8,0.489]
[1762788389163,0.01,3544.9,3544.6,0.405504]
[1762788389363,0.01,3544.9,3544.7,3.809]
[1762788390829,0.01,3544.9,3544.8,7.98523762]
[1762788391034,0.01,3544.9,3544.8,4.17623762]
[1762788391240,0.01,3544.9,3544.8,1.355204]
[1762788391441,0.01,3544.9,3544.0,2.8215974]
[1762788391643,0.1788,3544.9,3543.8,3.809]
[1762788391851,0.6648,3544.9,3543.8,3.809]
[1762788392036,0.6648,3544.9,3543.7,0.4607]
[1762788392238,0.1788,3544.9,3543.7,0.67152648]
[1762788392586,2.82105835,3544.8,3544.0,0.405504]
[1762788392780,2.82105835,3544.8,3543.9,3.22725396]
[1762788392964,2.82112103,3544.7,3543.9,0.405504]
[1762788393151,2.82112103,3544.7,3543.8,0.4607]
[1762788393357,2.82147458,3544.3,3543.3,2.82215055]
[1762788393672,0.486,3544.6,3543.6,2.8219844]
[1762788393839,0.01,3544.9,3543.7,0.02821909]
[1762788394036,0.01,3544.9,3543.9,3.22725292]
[1762788394244,0.01,3544.9,3544.1,2.82159081]
[1762788394450,0.01,3544.9,3544.3,3.22689574]
[1762788394648,0.01,3544.9,3544.8,0.489]
[1762788395514,0.7232,3544.9,3543.4,1.01159802]
[1762788395649,1.259712,3544.6,3543.2,0.4607]
[1762788395984,1.259712,3544.6,3543.1,0.1838]
[1762788395985,2.82160405,3544.1,3543.1,0.1838]
[1762788396144,2.82195829,3543.7,3543.1,0.1838]
[1762788396348,2.82195829,3543.7,3542.1,0.2031]
[1762788396349,0.186,3543.2,3542.1,0.6638]
[1762788396693,2.82238717,3543.1,3542.5,0.002]
[1762788397384,2.82258143,3542.9,3542.5,0.002]
[1762788397684,2.82238717,3543.1,3542.5,0.002]
[1762788397884,3.00837486,3543.2,3542.5,0.002]
[1762788398190,0.186,3543.2,3542.5,0.002]
[1762788398772,0.186,3543.4,3542.5,0.002]
[1762788398978,0.186,3543.4,3542.5,0.407504]
[1762788399172,3.00819823,3543.4,3542.5,0.407504]
[1762788399392,2.82175004,3543.9,3542.6,0.4607]
[1762788399691,0.486,3544.7,3543.3,0.405504]
[1762788399890,0.486,3544.6,3543.4,0.1838]
[1762788400094,2.82134616,3544.5,3543.4,0.1838]
[1762788400510,0.486,3544.6,3543.4,0.1838]
[1762788400681,2.82152323,3544.2,3543.4,0.1838]
[1762788400998,2.82160365,3544.1,3543.4,0.1838]
[1762788401500,2.82160365,3544.1,3542.9,2.82252815]
[1762788401501,0.186,3543.5,3542.8,0.405504]
[1762788402291,0.186,3543.7,3542.7,0.866204]
[1762788402494,0.186,3543.7,3542.5,0.002]
[1762788402698,0.486,3543.6,3542.5,0.002]
[1762788402872,1.259712,3543.5,3542.5,0.002]
[1762788403183,0.486,3543.6,3542.5,0.002]
[1762788403184,0.486,3543.6,3542.5,0.407504]
[1762788403505,1.745712,3543.6,3542.5,0.002]
[1762788403713,0.186,3542.6,3542.5,0.002]
[1762788403879,2.82256651,3542.9,3542.5,0.002]
[1762788404501,2.82267421,3542.8,3542.5,0.002]
[1762788404706,0.4981,3542.6,3542.5,0.002]
[1762788404917,3.32088552,3542.6,3542.5,0.002]
[1762788405229,3.37618552,3542.6,3542.5,0.002]
[1762788405368,0.5534,3542.6,3542.5,0.002]
[1762788405571,2.82275562,3542.7,3542.5,0.002]
[1762788405775,2.82278552,3542.6,3542.5,0.002]
[1762788406018,4.14969752,3542.6,3542.5,0.002]
[1762788406302,4.63149752,3542.6,3542.5,0.002]
[1762788406902,4.63149752,3542.6,3542.1,0.012]
[1762788406903,2.82310428,3542.2,3542.1,0.012]
[1762788407105,4.08761628,3542.2,3542.1,0.012]
[1762788407306,4.57361628,3542.2,3542.1,0.012]
[1762788407773,1.750512,3542.2,3542.1,0.012]
[1762788407973,4.57361628,3542.2,3542.1,0.012]
[1762788408199,4.57281628,3542.2,3542.1,0.012]
[1762788410083,1.263712,3542.2,3542.1,0.012]
[1762788410283,1.259712,3542.2,3542.1,0.012]
[1762788410694,0.486,3543.0,3542.1,0.012]
[1762788410913,2.82281547,3542.6,3542.1,0.6848]
[1762788411211,1.259712,3542.7,3542.1,0.012]
[1762788411377,1.259712,3542.5,3542.1,0.012]
[1762788411571,2.82293654,3542.5,3542.1,0.012]
[1762788411772,2.8227864,3542.6,3542.1,0.012]
[1762788411978,2.82286531,3542.5,3542.1,0.012]
[1762788412778,2.82295869,3542.4,3542.1,0.012]
[1762788412976,2.82303375,3542.3,3542.1,0.012]
[1762788413309,2.82288954,3542.5,3542.1,0.012]
[1762788413507,0.486,3542.6,3542.1,0.012]
[1762788413680,0.486,3542.5,3542.1,0.012]
[1762788414026,2.82309523,3542.3,3542.1,0.012]
[1762788414193,4.14841628,3542.2,3542.1,0.012]
[1762788414725,4.60241628,3542.2,3542.1,0.012]
[1762788415435,4.60341628,3542.2,3542.1,0.012]
[1762788419240,2.8233434,3541.9,3541.8,0.002]
[1762788419528,4.3052554,3541.9,3541.8,0.002]
[1762788419729,4.7902554,3541.9,3541.8,0.002]
[1762788422552,4.11575402,3541.4,3541.3,1e-08]
[1762788422837,4.60075402,3541.4,3541.3,1e-08]
[1762788424137,4.60075402,3541.4,3540.5,0.002]
[1762788424138,2.82406099,3541.0,3540.5,0.002]
[1762788424348,4.29229204,3540.6,3540.5,1e-08]
[1762788424701,4.77729204,3540.6,3540.5,1e-08]
[1762788425202,5.18279604,3540.6,3540.5,1e-08]
[1762788425397,3.23020316,3540.2,3540.1,1e-08]
[1762788425598,4.08520928,3539.2,3539.1,0.01]
[1762788425821,0.0323,3540.2,3539.1,0.1957]
[1762788426053,0.6624,3540.6,3540.1,0.1857]
[1762788426054,0.1774,3540.6,3540.1,0.1857]
[1762788426252,0.1774,3540.9,3540.1,0.6732]
[1762788426671,2.82461483,3540.4,3540.1,0.6732]
[1762788426851,2.82454065,3540.4,3540.1,0.6732]
[1762788427160,0.1774,3540.9,3540.1,0.6732]
[1762788427454,2.8246489,3540.3,3540.1,0.6732]
[1762788427619,2.82464467,3540.3,3540.1,0.6732]
[1762788427825,0.1774,3540.9,3540.1,0.6732]
[1762788428247,2.82455172,3540.4,3540.1,0.6732]
[1762788428446,2.82467098,3540.3,3540.1,0.6732]
[1762788428621,2.82469916,3540.2,3540.1,0.6732]
[1762788428826,1.259712,3540.4,3540.1,0.6732]
[1762788429029,2.82467098,3540.3,3540.1,0.6732]
[1762788429571,0.1774,3540.9,3540.2,0.4875]
[1762788429787,2.82437251,3540.7,3540.2,0.9394]
[1762788429950,2.82438285,3540.6,3540.3,0.4519]
[1762788430484,1.259712,3540.4,3540.2,3.809]
[1762788430683,2.82460845,3540.4,3540.2,3.809]
[1762788430984,1.259712,3540.7,3540.2,3.809]
[1762788431187,2.82533762,3539.4,3539.0,0.4519]
[1762788431350,2.8251506,3539.7,3538.8,0.002]
[1762788431557,1.259712,3539.8,3539.3,2.82536679]
[1762788431750,1.259712,3541.0,3539.4,0.35012218]
[1762788431995,0.6624,3541.2,3539.7,0.4875]
[1762788431996,1.259712,3540.1,3539.7,0.4875]
[1762788432171,2.82501836,3539.8,3539.7,0.4875]
[1762788432361,2.82421836,3539.8,3539.2,0.4519]
[1762788432758,2.82494234,3539.9,3539.2,0.4519]
[1762788432981,2.82488441,3540.0,3539.3,0.3473255]
[1762788433283,2.82503341,3539.8,3539.2,0.4519]
[1762788433481,2.82406099,3541.0,3539.2,0.4519]
[1762788433482,1.259712,3541.3,3539.2,0.4519]
[1762788433699,1.259712,3539.8,3539.2,0.4519]
[1762788434013,2.82507878,3539.8,3539.2,0.4519]
[1762788434165,2.82507768,3539.8,3539.2,0.4519]
[1762788434359,1.259712,3539.8,3539.2,0.4519]
[1762788434599,2.82519742,3539.6,3539.2,0.4519]
[1762788435092,2.82510464,3539.7,3539.2,0.4519]
[1762788435269,1.259712,3540.2,3539.2,0.4519]
[1762788435475,1.259712,3540.3,3539.2,0.4519]
[1762788435798,0.001,3540.4,3539.2,0.4519]
[1762788436000,0.001,3540.4,3539.3,2.85367162]
[1762788436203,2.8247587,3540.2,3539.4,0.80222716]
[1762788436500,1.259712,3540.3,3539.4,0.4519]
[1762788436799,2.82555457,3540.4,3540.3,0.6732]
[1762788436800,0.001,3540.4,3540.3,0.6732]
[1762788437110,0.001,3540.4,3540.3,4.7484]
[1762788437323,0.001,3540.4,3540.3,0.4875]
[1762788437597,0.001,3540.4,3540.1,0.1857]
[1762788437797,0.001,3540.4,3540.3,0.4875]
[1762788438101,0.001,3540.4,3540.3,0.9394]
[1762788438305,2.82469916,3540.2,3540.1,0.1857]
[1762788438509,0.001,3540.4,3540.3,0.4875]
[1762788439366,2.8255396,3540.4,3540.3,0.4875]
[1762788439603,2.82484549,3540.1,3539.4,0.4519]
[1762788439798,0.4566,3540.4,3539.4,0.4519]
[1762788440098,1.259712,3540.2,3539.4,0.4519]
[1762788440287,0.001,3540.4,3539.4,0.4519]
[1762788440490,0.001,3540.4,3540.3,0.6732]
[1762788440715,0.001,3540.4,3540.3,1.1251]
[1762788440890,2.82464079,3540.3,3540.0,0.1857]
[1762788441066,2.82556495,3540.4,3540.0,0.6376]
[1762788441266,0.001,3540.4,3540.3,0.4875]
[1762788441904,0.001,3540.4,3540.3,0.9394]
[1762788442879,0.001,3540.4,3540.3,3.76401938]
[1762788443079,0.001,3540.4,3540.3,1.73987594]
[1762788443768,0.001,3540.4,3540.3,4.56449532]
[1762788443973,0.001,3540.4,3540.3,1.73987594]
[1762788444310,0.001,3540.4,3540.3,4.56449532]
[1762788444729,0.001,3540.4,3540.3,1.73987594]
[1762788445193,0.001,3540.4,3540.3,1.344904]
[1762788446321,0.001,3540.4,3540.3,0.9394]
[1762788446634,0.001,3540.4,3540.3,1.344904]
[1762788446799,0.001,3540.4,3540.3,4.16952338]
[1762788446983,0.001,3540.4,3540.3,1.344904]
[1762788448890,0.001,3540.4,3540.3,8.13158378]
[1762788449897,0.001,3540.4,3540.3,4.2965]
[1762788450204,0.001,3540.4,3540.3,4.2996]
[1762788450510,0.001,3540.4,3540.3,0.4906]
[1762788450899,0.001,3540.4,3540.3,0.9495]
[1762788451299,0.001,3540.4,3540.3,0.4906]
[1762788451490,0.001,3540.4,3540.3,0.9495]
[1762788451685,0.001,3540.4,3540.3,0.4906]
[1762788451915,0.001,3540.4,3540.3,0.9495]
[1762788452316,0.001,3540.4,3540.3,0.4906]
[1762788452518,0.001,3540.4,3540.3,0.9495]
[1762788453645,0.001,3540.4,3540.3,0.4906]
[1762788453930,0.001,3540.4,3539.8,0.002]
[1762788454227,2.82461938,3540.3,3539.8,0.002]
[1762788454643,2.82479778,3540.1,3539.8,0.002]
[1762788454796,0.001,3540.4,3539.8,0.002]
[1762788455345,2.82461938,3540.3,3539.8,0.002]
[1762788455642,3.10243855,3539.9,3539.8,0.002]
[1762788455807,4.36215055,3539.9,3539.8,0.002]
[1762788456015,4.81315055,3539.9,3539.8,0.002]
[1762788456192,4.81235055,3539.9,3539.8,0.002]
[1762788457227,4.36135055,3539.9,3539.8,0.002]
[1762788457443,4.81235055,3539.9,3539.8,0.002]
[1762788457628,4.36135055,3539.9,3539.8,0.002]
[1762788457824,1.259712,3539.9,3539.8,0.002]
[1762788458008,0.001,3540.4,3539.8,0.4926]
[1762788458215,0.001,3540.4,3540.0,0.4906]
[1762788458216,2.82467305,3540.3,3540.0,0.4906]
[1762788458510,2.82554249,3540.4,3540.0,0.4906]
[1762788458729,0.001,3540.4,3540.1,0.189]
[1762788458928,2.82469916,3540.2,3540.1,0.189]
[1762788459665,0.001,3540.4,3540.1,0.189]
[1762788460012,0.001,3540.4,3539.8,0.002]
[1762788460313,2.82461938,3540.3,3539.8,0.002]
[1762788460513,0.001,3540.4,3539.8,0.4609]
[1762788460514,2.82560198,3540.4,3539.8,0.4609]
[1762788460740,0.001,3540.4,3540.3,0.6796]
[1762788461138,2.8255396,3540.4,3540.3,0.6796]
[1762788461320,0.001,3540.4,3540.3,0.6796]
[1762788461543,0.001,3540.4,3539.8,0.002]
[1762788462030,0.001,3540.4,3540.3,0.6796]
[1762788462216,2.8255396,3540.4,3540.3,0.6796]
[1762788462634,0.001,3540.4,3540.3,0.6796]
[1762788462915,0.001,3540.4,3540.3,0.4906]
[1762788463224,0.001,3540.4,3540.3,0.9495]
[1762788463421,0.001,3540.4,3540.3,1.355004]
[1762788463607,0.001,3540.4,3540.3,1.5122291]
[1762788464509,0.001,3540.4,3540.3,4.33684848]
[1762788464714,0.001,3540.4,3540.3,1.5122291]
[1762788465414,0.001,3540.4,3540.3,4.33684848]
[1762788465814,0.001,3540.4,3540.3,1.5122291]
[1762788466009,0.001,3540.4,3540.3,4.33684848]
[1762788467944,0.001,3540.4,3540.3,1.5122291]
[1762788468144,0.001,3540.4,3540.3,4.33684848]
[1762788469256,0.001,3540.4,3540.3,1.5122291]
[1762788469573,0.001,3540.4,3540.3,4.33684848]
[1762788469928,0.001,3540.4,3540.3,1.5122291]
[1762788470263,0.001,3540.4,3540.3,1.355004]
[1762788470467,2.82466826,3540.3,3539.8,0.002]
[1762788470652,1.260712,3540.4,3539.8,0.4609]
[1762788470840,0.001,3540.4,3540.3,0.4906]
[1762788471636,0.001,3540.4,3540.3,4.20786957]
[1762788471831,0.001,3540.4,3540.3,4.90178625]
[1762788473126,0.001,3540.4,3540.3,2.07716687]
[1762788473368,0.001,3540.4,3540.3,8.73903244]
[1762788473529,0.001,3540.4,3540.3,10.98209627]
[1762788473736,0.001,3540.4,3540.3,9.97049825]
[1762788474885,0.001,3540.4,3540.3,10.98209627]
[1762788475045,0.001,3540.4,3540.3,9.97049825]
[1762788475540,0.001,3540.4,3540.3,16.38049825]
[1762788476387,0.001,3540.8,3540.7,3.22980427]
[1762788476542,0.001,3540.8,3540.7,4.8387731]
[1762788476740,0.001,3540.8,3540.7,6.0984851]
[1762788477651,0.001,3540.8,3540.7,4.19280427]
[1762788480156,0.0002,3540.8,3540.7,4.19280427]
[1762788481398,0.0002,3540.8,3540.7,1.368504]
[1762788481547,0.0002,3540.8,3540.7,3.78730027]
[1762788481744,0.0002,3540.8,3540.7,4.22104727]
[1762788481944,0.0002,3540.8,3540.7,4.89734782]
[1762788484587,0.0002,3540.8,3540.7,4.92559082]
[1762788484883,0.0002,3540.8,3540.7,4.89734782]
[1762788485651,0.0002,3540.8,3540.7,6.15705982]
[1762788486361,0.001,3541.2,3540.7,6.15705982]
[1762788486362,0.001,3541.2,3541.1,3.22948524]
[1762788486566,0.001,3541.2,3541.1,5.90112388]
[1762788486886,0.001,3541.2,3541.1,7.37616809]
[1762788487448,0.001,3541.2,3541.1,6.36522388]
[1762788487860,0.01,3541.9,3541.8,3.22892711]
[1762788488072,0.01,3541.9,3541.8,4.33307095]
[1762788488290,0.01,3541.9,3541.8,4.79717095]
[1762788488484,0.01,3541.9,3541.8,6.05688295]
[1762788489094,0.01,3541.9,3541.8,7.06823842]
[1762788489254,0.01,3541.9,3541.8,6.05688295]
[1762788490104,0.01,3541.9,3541.8,6.61087286]
[1762788492878,0.01,3541.9,3541.8,1.86495584]
[1762788493075,0.253,3541.9,3541.1,1.92438211]
[1762788493288,0.01,3541.9,3541.2,0.4641]
[1762788493811,0.1834,3541.8,3540.9,1.01135547]
[1762788493993,0.4929,3541.7,3540.2,0.189]
[1762788494194,0.4929,3541.7,3540.2,1.448712]
[1762788494195,2.82358451,3541.6,3540.2,1.448712]
[1762788494506,2.82363094,3541.6,3540.7,2.82423422]
[1762788494710,0.4929,3541.5,3540.2,0.6531]
[1762788494901,3.31657066,3541.5,3540.3,0.18461555]
[1762788495074,0.4929,3541.5,3541.0,2.8240325]
[1762788495271,0.1834,3541.8,3541.4,0.405504]
[1762788495682,0.1834,3541.8,3541.6,0.405504]
[1762788496495,0.1834,3541.8,3541.5,0.405504]
[1762788496711,0.01,3541.9,3541.5,3.22915397]
[1762788496929,0.01,3541.9,3541.4,0.405504]
[1762788497107,0.5029,3541.9,3540.9,0.4641]
[1762788497294,3.32626283,3541.9,3541.2,0.405504]
[1762788497492,2.82345726,3541.8,3541.2,0.405504]
[1762788497678,2.82345726,3541.8,3540.8,2.82419744]
[1762788497679,0.0596,3541.3,3540.8,2.82417038]
[1762788497881,0.1854,3540.9,3540.3,0.76296147]
[1762788498121,0.1805,3541.1,3540.5,2.82445982]
[1762788498309,0.1805,3541.1,3540.7,2.82425841]
[1762788498815,0.1805,3541.1,3541.0,0.405504]
[1762788499122,0.1805,3541.1,3540.7,2.8242452]
[1762788499420,0.1805,3541.1,3541.0,0.405504]
[1762788499579,0.4929,3541.5,3541.0,0.405504]
[1762788499785,0.1805,3541.4,3540.8,0.405504]
[1762788500696,0.1805,3541.4,3540.9,0.405504]
[1762788500897,0.458,3540.9,3540.4,0.67691161]
[1762788501221,0.458,3540.9,3540.1,1.01135547]
[1762788501222,0.4543,3540.5,3540.1,2.82470351]
[1762788501514,2.82420647,3540.9,3540.3,0.405504]
[1762788501908,2.82420647,3540.9,3540.1,0.405504]
[1762788502099,2.82420647,3540.9,3540.3,0.405504]
[1762788502302,0.0566,3540.2,3539.9,0.002]
[1762788502526,0.0566,3540.0,3539.9,0.002]
[1762788503583,0.4885,3540.4,3539.9,0.002]
[1762788503820,2.82363932,3541.6,3539.9,0.002]
[1762788503821,0.4929,3540.8,3540.0,0.405504]
[1762788504026,2.82403197,3541.1,3540.4,0.405504]
[1762788504182,2.82403197,3541.1,3539.9,0.4661]
[1762788504183,0.4921,3541.3,3540.2,0.405504]
[1762788504388,4.08298882,3542.0,3540.2,0.405504]
[1762788504607,0.458,3540.3,3539.9,0.002]
[1762788504810,2.8242698,3540.8,3540.2,0.405504]
[1762788505010,2.82408866,3541.0,3540.2,0.405504]
[1762788505011,2.82407784,3541.0,3540.2,0.72873163]
[1762788505207,2.82407784,3541.0,3540.2,3.55338245]
[1762788505653,2.82394894,3541.2,3540.5,0.405504]
[1762788505944,2.82394894,3541.2,3540.4,2.82653955]
[1762788505945,2.82406155,3541.0,3540.4,0.407504]
[1762788506148,0.001,3541.2,3540.4,0.002]
[1762788506333,0.4537,3541.1,3540.4,0.002]
[1762788506520,2.82419823,3540.9,3540.4,0.002]
[1762788506729,0.4537,3541.1,3540.4,0.002]
[1762788506926,2.82427146,3540.8,3540.4,0.002]
[1762788507233,0.0937,3540.5,3540.4,0.002]
[1762788507745,0.001,3541.2,3540.5,0.405504]
[1762788507948,0.001,3541.2,3540.7,0.405504]
[1762788508247,0.001,3541.2,3541.1,0.405504]
[1762788508649,0.001,3541.2,3541.1,4.35648524]
[1762788509143,0.001,3541.2,3541.1,0.405504]
[1762788509933,0.001,3541.2,3541.1,3.22948524]
[1762788510547,0.001,3541.2,3541.1,0.405504]
[1762788511010,0.4645,3541.2,3541.1,0.405504]
[1762788511210,0.001,3541.2,3541.1,0.405504]
[1762788511446,0.001,3541.2,3541.1,3.22948524]
[1762788511650,0.001,3541.2,3541.1,1.99999614]
[1762788511947,0.001,3541.2,3541.1,4.39591719]
[1762788512164,0.001,3541.2,3541.1,4.36767738]
[1762788512350,0.001,3541.2,3541.1,4.82397738]
[1762788513151,0.001,3541.2,3541.1,4.85221719]
[1762788513352,0.001,3541.2,3541.1,6.08368938]
[1762788513556,0.01,3541.9,3541.8,3.22892711]
[1762788513860,0.01,3541.9,3541.8,2.27046003]
[1762788514020,0.01,3541.9,3541.2,1.01097059]
[1762788514021,2.82352194,3541.7,3541.2,1.01097059]
[1762788514215,0.0018,3541.7,3541.0,2.82400551]
[1762788514542,0.6461,3541.9,3541.8,3.22892711]
[1762788514543,0.01,3541.9,3541.8,3.22892711]
[1762788514723,0.01,3541.9,3541.8,3.71612711]
[1762788514923,0.01,3541.9,3541.8,4.98059667]
[1762788515123,0.01,3541.9,3541.8,4.95236244]
[1762788515326,0.01,3541.9,3541.8,4.98059667]
[1762788515525,0.01,3541.9,3541.8,4.95236244]
[1762788516285,0.01,3541.9,3541.8,4.98059667]
[1762788516492,0.01,3541.9,3541.8,4.95236244]
[1762788517071,0.01,3541.9,3541.8,6.21207444]
[1762788518104,0.001,3542.2,3541.8,6.21207444]
[1762788518105,0.001,3542.2,3542.1,2.82318398]
[1762788518256,0.01,3542.9,3542.5,3.2283692]
[1762788518594,0.01,3542.9,3542.5,4.9752812]
[1762788518748,0.01,3542.9,3542.5,6.44134958]
[1762788520345,0.01,3542.9,3542.5,5.4315812]
[1762788523203,0.01,3542.9,3542.5,8.3777772]
[1762788523348,0.01,3542.9,3542.5,10.13885077]
[1762788523567,0.01,3542.9,3542.5,10.54435477]
[1762788525766,0.01,3542.9,3542.5,11.00065477]
[1762788526903,0.01,3542.9,3542.5,15.30008924]
[1762788528524,0.0002,3542.6,3542.5,15.30008924]
[1762788529517,0.001,3543.4,3542.5,15.30008924]
[1762788529672,0.01,3543.9,3543.8,3.22733367]
[1762788530004,0.01,3543.9,3543.8,7.02313367]
[1762788531715,0.1045,3543.9,3543.8,7.02313367]
[1762788532086,0.1045,3543.9,3543.8,4.201304]
[1762788532292,0.7368,3543.9,3543.8,4.201304]
[1762788532540,0.7368,3543.9,3543.8,3.7958]
[1762788532827,0.7368,3543.9,3543.8,4.201304]
[1762788533999,0.7368,3543.9,3543.8,8.36645396]
[1762788534000,0.01,3543.9,3543.8,8.36645396]
[1762788534594,0.1081,3543.9,3543.8,4.57065396]
[1762788534793,0.01,3543.9,3543.8,4.57065396]
[1762788535029,0.2894,3543.9,3543.8,0.405504]
[1762788535324,0.7368,3543.9,3543.8,0.405504]
[1762788536500,0.7368,3543.9,3543.7,3.7958]
[1762788536703,0.473,3543.8,3543.7,3.7958]
[1762788536892,0.473,3543.8,3543.4,3.7958]
[1762788537092,0.473,3543.8,3543.0,2.82245988]
[1762788537093,2.8219548,3543.7,3543.0,2.82245988]
[1762788537329,0.4685,3543.8,3542.4,2.82289893]
[1762788537330,3.29033618,3543.8,3543.1,6.61815634]
[1762788537490,3.2904112,3543.7,3543.1,3.7958]
[1762788537696,0.0815,3543.2,3543.1,4.201304]
[1762788538124,2.82186389,3543.8,3543.1,7.02369117]
[1762788538332,3.29036389,3543.8,3543.2,3.22779896]
[1762788538526,0.4685,3543.7,3543.2,0.405504]
[1762788538762,0.4685,3543.7,3543.2,3.22780771]
[1762788539125,0.4685,3543.7,3543.2,0.405504]
[1762788539967,0.1905,3543.9,3543.6,0.405504]
[1762788540368,0.1905,3543.9,3543.6,3.227477]
[1762788540539,0.1905,3543.9,3543.7,3.7958]
[1762788540742,0.4685,3543.8,3543.7,3.7958]
[1762788540945,0.55,3543.8,3543.7,3.7958]
[1762788541532,3.37182967,3543.8,3543.7,3.7958]
[1762788541732,3.37182967,3543.8,3542.7,1.259712]
[1762788541733,2.82191127,3543.7,3542.5,4.39342025]
[1762788541948,0.0008,3543.4,3543.1,0.405504]
[1762788542166,0.0008,3543.4,3543.1,3.22987558]
[1762788542347,0.0008,3543.4,3543.3,3.22773186]
[1762788542533,0.66,3543.9,3543.3,3.22773186]
[1762788542761,0.66,3543.9,3543.3,0.405504]
[1762788542954,3.48175862,3543.9,3543.3,0.405504]
[1762788543269,0.466,3543.4,3543.1,0.407504]
[1762788543457,0.0008,3543.3,3543.1,0.407504]
[1762788543662,0.0008,3543.3,3543.2,3.22781151]
[1762788544368,0.0008,3543.3,3543.1,0.002]
[1762788544369,2.82183013,3543.8,3543.3,0.405504]
[1762788544572,0.1915,3543.9,3543.1,0.002]
[1762788544573,0.0815,3543.4,3543.1,0.002]
[1762788544772,0.0008,3543.2,3543.1,0.002]
[1762788544993,0.4685,3543.6,3543.1,0.002]
[1762788545194,0.4685,3543.6,3543.2,0.405504]
[1762788545397,0.1915,3543.9,3543.2,0.405504]
[1762788545594,0.1915,3543.9,3543.3,0.405504]
[1762788545796,0.1915,3543.9,3543.6,0.405504]
[1762788546122,0.011,3543.9,3543.7,2.85007825]
[1762788546472,0.011,3543.9,3543.7,0.02821909]
[1762788546680,0.011,3543.9,3543.8,3.22733367]
[1762788547172,0.011,3543.9,3543.7,3.2273932]
[1762788547371,0.011,3543.9,3543.8,3.22733367]
[1762788548403,0.011,3543.9,3543.8,3.83226553]
[1762788549609,0.011,3543.9,3543.8,3.22733367]
[1762788550918,0.011,3543.9,3543.8,3.72133367]
[1762788551129,0.011,3543.9,3543.8,5.45364567]
[1762788552190,0.0102,3543.9,3543.8,6.97365937]
[1762788552621,0.0102,3543.9,3543.8,6.97356874]
[1762788552781,0.0102,3543.9,3543.8,8.40591135]
[1762788553322,0.0102,3543.9,3543.8,7.93331135]
[1762788553494,0.0102,3543.9,3543.8,6.41338828]
[1762788554017,0.0102,3543.9,3543.8,6.88598828]
[1762788560795,0.011,3544.9,3544.8,3.22653762]
[1762788561097,0.011,3544.9,3544.8,8.16065388]
[1762788561329,0.011,3544.9,3544.8,7.66665388]
[1762788561647,0.7397,3544.9,3544.8,4.20030399]
[1762788561849,0.274,3544.9,3544.8,7.02133761]
[1762788562024,0.011,3544.9,3544.8,7.02133761]
[1762788562642,0.0945,3544.9,3544.8,7.02133761]
[1762788563046,0.0945,3544.9,3544.8,4.20030399]
[1762788563227,0.0945,3544.9,3544.8,7.02133761]
[1762788563750,0.5564,3544.9,3544.8,4.20030399]
[1762788563962,0.5564,3544.9,3544.6,0.405504]
[1762788564276,0.5564,3544.9,3544.6,3.52336188]
[1762788564277,0.001,3544.7,3544.6,3.52336188]
[1762788564436,0.001,3544.7,3544.6,15.89117788]
[1762788564779,0.001,3544.7,3544.6,16.38517788]
[1762788565128,0.001,3544.7,3544.6,15.88637788]
[1762788565633,0.001,3544.7,3544.6,16.36797788]
[1762788566251,0.001,3544.7,3544.6,17.77462746]
[1762788566664,0.001,3544.7,3544.6,17.3785616]
[1762788567267,0.001,3544.7,3544.6,16.36797788]
[1762788567454,0.001,3544.7,3544.6,6.13797788]
[1762788567857,1e-08,3545.9,3545.8,2.82023802]
[1762788568057,1e-08,3545.9,3545.8,5.23527782]
[1762788568686,1e-08,3545.9,3545.8,5.71687782]
[1762788569210,0.01,3546.9,3545.8,5.71687782]
[1762788569492,0.01,3546.9,3546.8,9.67893131]
[1762788569854,0.01,3546.9,3546.8,5.15105887]
[1762788570048,0.01,3546.9,3546.8,5.94811844]
[1762788570254,0.01,3546.9,3546.8,6.42971844]
[1762788570489,0.01,3546.9,3546.8,10.95759088]
[1762788570704,0.01,3547.9,3547.8,2.81864817]
[1762788570857,0.01,3547.9,3547.8,3.89055217]
[1762788571056,0.01,3547.9,3547.8,5.49586889]
[1762788571364,0.01,3547.9,3547.8,6.75558089]
[1762788571563,0.01,3548.9,3548.8,2.81785392]
[1762788571789,0.01,3548.9,3548.8,3.22335792]
[1762788572193,0.01,3548.9,3548.8,3.25153645]
[1762788572378,0.01,3548.9,3548.8,3.22335792]
[1762788572698,0.10665875,3549.5,3548.9,0.405504]
[1762788572859,0.10665875,3549.5,3549.4,0.405504]
[1762788573267,0.65215875,3549.5,3549.4,0.405504]
[1762788574009,0.20085875,3549.5,3549.4,0.405504]
[1762788574305,0.65215875,3549.5,3549.4,0.405504]
[1762788575059,0.65215875,3549.5,3548.7,0.405504]
[1762788575269,0.10665875,3549.5,3549.4,3.22288158]
[1762788576317,0.10585875,3549.5,3549.4,3.22288158]
[1762788577730,0.10585875,3549.5,3549.4,0.405504]
[1762788578025,0.10585875,3549.5,3549.4,3.22288158]
[1762788578522,0.10585875,3549.5,3549.4,3.69068158]
[1762788579103,0.10585875,3549.5,3549.4,0.405504]
[1762788579423,0.20005875,3549.5,3549.4,0.405504]